bitfinex/quotes_BTCUSD_20240902
["timestamp","ask_amount","ask_price","bid_price","bid_amount"]
[1725270476045,0.02771123,58344.0,58343.0,0.51114]
[1725270476835,0.02771123,58344.0,58343.0,0.1512]
[1725270477566,0.02771123,58344.0,58343.0,0.27118]
[1725270478918,0.02771123,58344.0,58343.0,0.1512]
[1725270479382,0.14768923,58344.0,58343.0,0.1512]
[1725270479630,0.38764523,58344.0,58343.0,0.0891]
[1725270479907,0.62760123,58344.0,58343.0,0.008]
[1725270480143,0.120793,58344.0,58343.0,0.008]
[1725270480371,0.360749,58344.0,58343.0,0.008]
[1725270481077,0.600705,58344.0,58343.0,0.008]
[1725270481332,0.840661,58344.0,58343.0,0.008]
[1725270483026,0.600705,58344.0,58343.0,0.008]
[1725270484273,0.840661,58344.0,58343.0,0.008]
[1725270484744,0.360749,58344.0,58343.0,0.008]
[1725270485241,0.863661,58344.0,58343.0,0.008]
[1725270485460,0.865661,58344.0,58343.0,0.008]
[1725270486572,0.863661,58344.0,58343.0,0.008]
[1725270486826,0.840661,58344.0,58343.0,0.008]
[1725270487050,0.000815,58344.0,58330.0,0.0782]
[1725270487265,0.12,58334.0,58330.0,0.0782]
[1725270487445,0.12,58334.0,58331.0,0.0636]
[1725270487689,0.120002,58332.0,58331.0,0.0636]
[1725270488151,0.360007,58332.0,58331.0,0.0636]
[1725270488356,0.120002,58332.0,58331.0,0.0636]
[1725270489061,0.600012,58332.0,58331.0,0.0636]
[1725270489783,1.01314908,58332.0,58331.0,0.0636]
[1725270490037,0.600022,58331.0,58330.0,0.0782]
[1725270490265,0.17313208,58332.0,58329.0,0.0008965]
[1725270490266,0.840045,58330.0,58329.0,0.0008965]
[1725270492432,0.842045,58330.0,58329.0,0.0008965]
[1725270492680,0.840045,58330.0,58329.0,0.0008965]
[1725270493155,0.840045,58330.0,58329.0,0.0148965]
[1725270494572,1.080058,58330.0,58329.0,0.0008965]
[1725270494810,1.080058,58330.0,58329.0,0.0048965]
[1725270496007,1.22087152,58330.0,58329.0,0.0048965]
[1725270496484,1.49887649,58330.0,58329.0,0.0048965]
[1725270496964,1.59887649,58330.0,58329.0,0.0048965]
[1725270497913,1.082189,58323.0,58322.0,0.0008965]
[1725270498152,1.22100252,58323.0,58322.0,0.0008965]
[1725270498689,0.840364,58308.0,58307.0,0.0008965]
[1725270498919,0.97917752,58308.0,58307.0,0.0008965]
[1725270499169,1.21928152,58308.0,58307.0,0.0008965]
[1725270499672,1.22128152,58308.0,58307.0,0.0008965]
[1725270499902,1.34340967,58308.0,58307.0,0.0008965]
[1725270500392,1.22128152,58308.0,58307.0,0.0008965]
[1725270500639,1.2367279,58308.0,58307.0,0.0008965]
[1725270500883,1.09791438,58308.0,58307.0,0.0008965]
[1725270501128,1.2367279,58308.0,58307.0,0.0008965]
[1725270501623,1.12583481,58308.0,58307.0,0.0008965]
[1725270501862,1.27529964,58308.0,58307.0,0.0008965]
[1725270502096,1.44898423,58308.0,58307.0,0.0008965]
[1725270502565,1.3225194,58308.0,58307.0,0.0008965]
[1725270504173,1.3275194,58308.0,58307.0,0.0008965]
[1725270504402,0.600455,58289.0,58288.0,0.50540786]
[1725270504632,0.77413959,58289.0,58288.0,0.50540786]
[1725270504861,0.36031,58283.0,58282.0,0.1]
[1725270505076,0.36031,58283.0,58282.0,0.1433]
[1725270506478,0.36131,58283.0,58282.0,0.1573]
[1725270508276,0.14802499,58283.0,58282.0,0.1573]
[1725270508502,0.62843899,58283.0,58282.0,0.1573]
[1725270508724,0.02792199,58283.0,58282.0,0.1573]
[1725270508942,0.001,58283.0,58282.0,0.1573]
[1725270509157,0.121103,58283.0,58282.0,0.1573]
[1725270509597,0.36131,58283.0,58282.0,0.1573]
[1725270511043,0.121103,58283.0,58282.0,0.1573]
[1725270511277,0.36131,58283.0,58282.0,0.1573]
[1725270511734,0.601517,58283.0,58282.0,0.1573]
[1725270512199,0.62844216,58283.0,58282.0,0.1573]
[1725270512407,0.601517,58283.0,58282.0,0.1573]
[1725270512838,0.841724,58283.0,58282.0,0.1573]
[1725270513048,0.601517,58283.0,58282.0,0.1573]
[1725270513493,0.841724,58283.0,58282.0,0.014]
[1725270516274,0.841724,58283.0,58282.0,0.1565]
[1725270516275,0.001,58283.0,58282.0,0.1565]
[1725270516517,0.17368459,58307.0,58282.0,0.1565]
[1725270516767,0.01,58318.0,58282.0,0.1565]
[1725270516768,0.17368459,58312.0,58297.0,0.0765]
[1725270516970,0.240109,58307.0,58298.0,0.066]
[1725270517175,0.120052,58308.0,58300.0,0.120067]
[1725270517390,0.120061,58304.0,58302.0,0.0765]
[1725270517582,0.120062,58303.0,58302.0,0.0765]
[1725270518028,0.120058,58305.0,58302.0,0.0765]
[1725270518236,0.12087,58307.0,58302.0,0.0765]
[1725270518446,0.000816,58307.0,58302.0,0.0765]
[1725270518665,0.120062,58303.0,58302.0,0.0765]
[1725270518860,0.240114,58306.0,58302.0,0.0765]
[1725270519097,0.120062,58303.0,58302.0,0.0865]
[1725270519300,0.120062,58303.0,58302.0,0.0765]
[1725270519504,0.360186,58303.0,58302.0,0.0765]
[1725270519715,0.840434,58303.0,58302.0,0.0815]
[1725270519926,0.840434,58303.0,58298.0,0.0773]
[1725270520156,0.360211,58299.0,58298.0,0.0773]
[1725270520361,0.600352,58299.0,58298.0,0.0773]
[1725270521358,0.12007,58299.0,58298.0,0.0773]
[1725270521568,0.360211,58299.0,58298.0,0.0773]
[1725270521979,0.120067,58301.0,58298.0,0.0773]
[1725270522188,0.120067,58301.0,58298.0,0.0913]
[1725270522629,0.120068,58300.0,58298.0,0.0913]
[1725270523209,0.120068,58300.0,58298.0,0.0773]
[1725270523639,0.120068,58300.0,58298.0,0.0723]
[1725270523847,0.12007,58299.0,58298.0,0.0723]
[1725270524308,0.12646146,58299.0,58298.0,0.0723]
[1725270524510,0.20949928,58303.0,58298.0,0.0723]
[1725270524761,0.02692002,58299.0,58298.0,0.0723]
[1725270524975,0.02692002,58299.0,58298.0,0.496017]
[1725270525432,0.000816,58307.0,58299.0,0.120069]
[1725270525652,0.000816,58307.0,58300.0,0.120068]
[1725270525653,0.12087,58307.0,58300.0,0.120068]
[1725270525865,0.000816,58307.0,58301.0,0.183566]
[1725270526111,0.120871,58307.0,58301.0,0.0635]
[1725270526338,0.120059,58305.0,58301.0,0.0635]
[1725270526545,0.000816,58307.0,58301.0,0.0635]
[1725270526764,0.000816,58307.0,58302.0,0.120063]
[1725270527220,0.120062,58304.0,58301.0,0.0635]
[1725270527427,0.36017,58306.0,58301.0,0.0685]
[1725270527661,0.120058,58305.0,58301.0,0.0685]
[1725270527944,0.12006,58304.0,58301.0,0.0635]
[1725270528393,0.36017,58306.0,58301.0,0.0635]
[1725270528613,0.1469776,58304.0,58301.0,0.0635]
[1725270529066,0.0269176,58304.0,58301.0,0.0635]
[1725270529564,0.0269176,58304.0,58302.0,0.005]
[1725270529776,0.0269176,58304.0,58301.0,0.0635]
[1725270529777,0.49909096,58302.0,58301.0,0.0635]
[1725270529990,0.73921896,58302.0,58301.0,0.0725]
[1725270531097,0.97934696,58302.0,58301.0,0.0725]
[1725270531324,0.97934696,58302.0,58301.0,0.009]
[1725270531758,0.98134696,58302.0,58301.0,0.009]
[1725270532429,0.97934696,58302.0,58301.0,0.009]
[1725270532661,0.73921896,58302.0,58301.0,0.009]
[1725270532908,0.97934696,58302.0,58301.0,0.02]
[1725270533893,1.34830142,58302.0,58301.0,0.02]
[1725270534122,1.45030142,58302.0,58301.0,0.02]
[1725270534805,0.1201,58285.0,58282.0,0.0008976]
[1725270535063,0.120102,58284.0,58282.0,0.0008976]
[1725270535544,0.240169,58293.0,58282.0,0.0008976]
[1725270535763,0.120094,58288.0,58282.0,0.0008976]
[1725270536200,0.240174,58291.0,58282.0,0.1210026]
[1725270536201,0.120095,58287.0,58282.0,0.1210026]
[1725270536632,0.240167,58293.0,58283.0,0.120103]
[1725270536633,0.120094,58288.0,58283.0,0.120103]
[1725270536862,0.14089896,58296.0,58282.0,0.0008976]
[1725270536863,0.13889896,58296.0,58282.0,0.0118976]
[1725270537108,0.240174,58291.0,58282.0,0.0118976]
[1725270537373,0.120094,58288.0,58282.0,0.1210026]
[1725270537600,0.120094,58288.0,58283.0,0.120103]
[1725270537821,0.120095,58287.0,58282.0,0.0008976]
[1725270538089,0.120095,58287.0,58282.0,0.1210026]
[1725270538319,0.120095,58287.0,58282.0,0.0088976]
[1725270538765,0.02692512,58286.0,58282.0,0.0088976]
[1725270539422,0.1201,58285.0,58282.0,0.0088976]
[1725270539673,0.1201,58285.0,58282.0,0.0008976]
[1725270539888,0.1201,58285.0,58283.0,0.014]
[1725270540123,0.1201,58285.0,58282.0,0.0008976]
[1725270540611,0.120102,58284.0,58282.0,0.0148976]
[1725270540798,0.26712312,58286.0,58282.0,0.0008976]
[1725270540799,0.14702312,58286.0,58282.0,0.0008976]
[1725270541289,0.14702312,58286.0,58283.0,0.014]
[1725270541513,0.02692512,58286.0,58282.0,0.0008976]
[1725270541733,0.02692512,58286.0,58283.0,0.120102]
[1725270542198,0.120094,58288.0,58283.0,0.120102]
[1725270542720,0.002,58301.0,58283.0,0.120102]
[1725270542721,0.000816,58305.0,58294.0,0.12008]
[1725270542974,0.120065,58302.0,58288.0,0.240184]
[1725270543243,0.000816,58305.0,58302.0,0.120063]
[1725270543683,0.000816,58305.0,58289.0,0.08404971]
[1725270543684,0.000816,58305.0,58293.0,0.240165]
[1725270543914,0.120061,58304.0,58298.0,0.120071]
[1725270544157,0.120062,58303.0,58298.0,0.120071]
[1725270544365,0.120064,58302.0,58297.0,0.120072]
[1725270544590,0.120066,58301.0,58297.0,0.120072]
[1725270544852,0.13889896,58304.0,58291.0,0.120086]
[1725270545069,0.120075,58297.0,58292.0,0.1]
[1725270545332,0.120075,58297.0,58292.0,0.120084]
[1725270545548,0.120077,58296.0,58291.0,0.120086]
[1725270545804,0.120073,58298.0,58285.0,0.4788]
[1725270546046,0.120073,58298.0,58293.0,0.120081]
[1725270546502,0.120075,58297.0,58293.0,0.120081]
[1725270547183,0.02692064,58297.0,58293.0,0.120081]
[1725270547662,0.02692064,58297.0,58290.0,0.240178]
[1725270547879,0.02692064,58297.0,58294.0,0.240158]
[1725270548337,0.02692064,58297.0,58296.0,0.360229]
[1725270548579,0.02692064,58297.0,58296.0,0.600382]
[1725270550454,0.02692064,58297.0,58287.0,0.05133676]
[1725270550688,0.02692064,58297.0,58280.0,0.05133676]
[1725270550903,0.02692064,58297.0,58290.0,0.013]
[1725270551547,0.02692064,58297.0,58289.0,0.120091]
[1725270551763,0.02692064,58297.0,58284.0,0.1201]
[1725270552011,0.02692064,58297.0,58279.0,0.0008965]
[1725270552012,0.120098,58286.0,58279.0,0.0008965]
[1725270552244,0.1737076,58292.0,58279.0,0.50630436]
[1725270552462,0.120103,58283.0,58279.0,0.0008965]
[1725270552709,0.36031,58283.0,58279.0,0.0008965]
[1725270554315,0.36031,58283.0,58282.0,0.0048976]
[1725270554532,0.38723889,58283.0,58282.0,0.0008976]
[1725270554755,0.62744589,58283.0,58282.0,0.0008976]
[1725270555434,0.62744589,58283.0,58282.0,0.0148976]
[1725270555908,0.38723889,58283.0,58282.0,0.0148976]
[1725270558242,0.14703189,58283.0,58282.0,0.0148976]
[1725270558461,0.02692889,58283.0,58282.0,0.0148976]
[1725270558687,0.02692889,58283.0,58282.0,0.3752136]
[1725270558917,0.02692889,58283.0,58282.0,0.6154246]
[1725270559163,0.240147,58298.0,58282.0,0.6154246]
[1725270559164,0.12008,58295.0,58289.0,0.12009]
[1725270559414,0.240161,58295.0,58282.0,0.2551086]
[1725270559639,0.120088,58291.0,58286.0,0.120097]
[1725270559868,0.120089,58290.0,58286.0,0.120097]
[1725270560101,0.240171,58292.0,58284.0,0.1201]
[1725270560322,0.240163,58294.0,58282.0,0.2551086]
[1725270560559,0.120086,58292.0,58286.0,0.120096]
[1725270560794,0.240163,58294.0,58282.0,0.2411086]
[1725270560795,0.4138596,58297.0,58287.0,0.0631]
[1725270561027,0.120089,58291.0,58287.0,0.0631]
[1725270561298,0.120089,58290.0,58289.0,0.0631]
[1725270561529,0.360267,58290.0,58289.0,0.0631]
[1725270561760,0.600445,58290.0,58289.0,0.0631]
[1725270562452,0.62737048,58290.0,58289.0,0.0631]
[1725270562725,0.86754848,58290.0,58288.0,0.0781]
[1725270562952,0.360273,58289.0,58288.0,0.0781]
[1725270563161,0.840637,58289.0,58288.0,0.0781]
[1725270564467,0.02692554,58291.0,58287.0,0.06]
[1725270564468,0.840651,58288.0,58287.0,0.06]
[1725270565187,0.600497,58285.0,58284.0,0.143]
[1725270566325,0.62742359,58285.0,58284.0,0.143]
[1725270566811,0.86762259,58285.0,58284.0,0.143]
[1725270567234,0.62742359,58285.0,58284.0,0.143]
[1725270567460,0.62742359,58285.0,58284.0,0.157]
[1725270567461,0.14702559,58285.0,58284.0,0.157]
[1725270568102,0.14702559,58285.0,58284.0,0.143]
[1725270569019,0.02692659,58285.0,58284.0,0.143]
[1725270569464,0.38722459,58285.0,58284.0,0.143]
[1725270569685,0.14702559,58285.0,58284.0,0.155]
[1725270570621,0.38722459,58285.0,58284.0,0.155]
[1725270571303,0.86762259,58285.0,58284.0,0.012]
[1725270571521,0.86962259,58285.0,58284.0,0.012]
[1725270572695,0.86762259,58285.0,58284.0,0.012]
[1725270572938,0.600517,58283.0,58282.0,0.0822976]
[1725270573366,0.600517,58283.0,58282.0,0.1472976]
[1725270573584,0.94505902,58283.0,58282.0,0.0008976]
[1725270574037,0.97973137,58283.0,58282.0,0.0008976]
[1725270574251,0.98173137,58283.0,58282.0,0.0008976]
[1725270574697,0.74152437,58283.0,58282.0,0.0646976]
[1725270574909,0.74152437,58283.0,58282.0,0.1414976]
[1725270576974,0.74152437,58283.0,58282.0,0.0008976]
[1725270576975,0.84238947,58283.0,58282.0,0.0008976]
[1725270577196,0.74152437,58283.0,58282.0,0.0008976]
[1725270577412,0.36231,58283.0,58282.0,0.1467976]
[1725270577632,0.002,58283.0,58282.0,0.2669026]
[1725270577849,0.002,58283.0,58282.0,0.1467976]
[1725270579468,0.002,58283.0,58282.0,0.2669026]
[1725270579697,0.002,58283.0,58282.0,0.5071136]
[1725270583239,0.240142,58299.0,58282.0,0.5071136]
[1725270583240,0.000816,58303.0,58291.0,0.0769]
[1725270583529,0.000816,58303.0,58302.0,0.360192]
[1725270583744,0.000816,58303.0,58302.0,0.86244812]
[1725270583970,0.000816,58303.0,58302.0,1.10257612]
[1725270584231,0.000816,58303.0,58302.0,0.86244812]
[1725270584946,0.000816,58307.0,58303.0,0.360186]
[1725270585173,0.000816,58307.0,58303.0,0.62221412]
[1725270585409,0.000816,58307.0,58303.0,1.10246212]
[1725270585658,0.000816,58307.0,58303.0,1.10743566]
[1725270585884,0.000816,58307.0,58306.0,0.75138]
[1725270586103,0.000816,58307.0,58306.0,1.11049366]
[1725270586314,0.000816,58307.0,58306.0,1.11049146]
[1725270587058,0.240813,58334.0,58321.0,0.1459]
[1725270587059,0.240812,58334.0,58321.0,0.1459]
[1725270587321,0.000815,58334.0,58322.0,0.14932857]
[1725270587544,0.000815,58334.0,58325.0,0.0815]
[1725270587782,0.000815,58334.0,58329.0,0.120007]
[1725270588030,0.000815,58334.0,58324.0,0.0651]
[1725270588031,0.120814,58334.0,58330.0,0.0773]
[1725270588527,0.000815,58334.0,58330.0,0.0773]
[1725270588738,0.000815,58334.0,58333.0,0.360001]
[1725270588970,0.000815,58334.0,58333.0,0.499101]
[1725270589212,0.000815,58334.0,58333.0,0.2591]
[1725270589639,0.000815,58334.0,58333.0,0.499101]
[1725270590082,0.000815,58334.0,58333.0,0.1391]
[1725270590327,0.000815,58334.0,58333.0,0.499101]
[1725270590552,0.000815,58334.0,58333.0,0.2731]
[1725270590773,0.000815,58334.0,58333.0,0.1531]
[1725270590999,0.000815,58334.0,58333.0,0.2731]
[1725270591231,0.000815,58334.0,58333.0,0.1531]
[1725270592331,0.000815,58334.0,58333.0,0.1391]
[1725270592579,0.000815,58334.0,58333.0,0.1531]
[1725270592827,0.000815,58334.0,58333.0,0.1391]
[1725270593062,0.36081,58334.0,58333.0,0.1531]
[1725270593276,0.120813,58334.0,58333.0,0.1391]
[1725270593502,0.36081,58334.0,58333.0,0.1391]
[1725270593735,0.36081,58334.0,58333.0,0.1531]
[1725270593736,0.120813,58334.0,58333.0,0.1531]
[1725270593960,0.000815,58334.0,58333.0,0.1531]
[1725270594209,0.000815,58334.0,58333.0,0.2731]
[1725270594672,0.000815,58334.0,58333.0,0.513101]
[1725270594958,0.000815,58334.0,58333.0,0.753102]
[1725270595172,0.000815,58344.0,58343.0,0.35994]
[1725270595400,0.000815,58344.0,58343.0,0.7364]
[1725270595860,0.0277116,58344.0,58343.0,0.49644]
[1725270596556,0.0277116,58344.0,58343.0,0.25648]
[1725270597253,0.0277116,58344.0,58343.0,0.50944]
[1725270597486,0.000815,58344.0,58343.0,0.26948]
[1725270597757,0.000815,58344.0,58343.0,0.1495]
[1725270597986,0.240771,58344.0,58343.0,0.0891]
[1725270598203,0.240771,58344.0,58343.0,0.013]
[1725270598204,0.600705,58344.0,58343.0,0.013]
[1725270599437,0.360749,58344.0,58343.0,0.013]
[1725270599659,0.240771,58344.0,58338.0,0.0805]
[1725270599908,0.119988,58340.0,58338.0,0.0805]
[1725270600134,0.119983,58342.0,58338.0,0.0805]
[1725270600345,0.240771,58344.0,58338.0,0.0805]
[1725270600346,0.119984,58341.0,58338.0,0.0805]
[1725270600823,0.119986,58340.0,58338.0,0.0805]
[1725270601721,0.119988,58339.0,58338.0,0.0805]
[1725270601963,0.59994,58339.0,58338.0,0.0805]
[1725270602702,0.000815,58347.0,58338.0,0.0935]
[1725270602948,0.359992,58335.0,58331.0,0.0765]
[1725270603210,0.119998,58334.0,58331.0,0.0765]
[1725270603741,0.000815,58347.0,58346.0,0.119973]
[1725270603986,0.000815,58347.0,58346.0,0.262273]
[1725270604221,0.119955,58355.0,58348.0,0.119968]
[1725270604452,0.119954,58356.0,58347.0,0.239943]
[1725270604689,0.119956,58355.0,58350.0,0.119965]
[1725270604920,0.119956,58355.0,58349.0,0.00342729]
[1725270605167,0.119956,58355.0,58349.0,0.12339329]
[1725270605396,0.239896,58359.0,58349.0,0.00342729]
[1725270605636,0.248044,58362.0,58350.0,0.239929]
[1725270605871,0.239887,58361.0,58351.0,0.00342722]
[1725270606107,0.00816,58362.0,58357.0,0.11995]
[1725270606352,0.128101,58362.0,58357.0,0.11595]
[1725270606600,0.17344321,58360.0,58352.0,0.0601]
[1725270606849,0.119958,58354.0,58346.0,0.081]
[1725270607088,0.00816,58362.0,58346.0,0.200972]
[1725270607089,0.11996,58353.0,58346.0,0.200972]
[1725270607337,0.00816,58362.0,58352.0,0.0608]
[1725270607338,0.01216,58362.0,58352.0,0.0608]
[1725270607631,0.119954,58356.0,58352.0,0.0608]
[1725270607864,0.119955,58355.0,58352.0,0.0608]
[1725270608806,0.119961,58352.0,58351.0,0.081]
[1725270609036,0.359884,58352.0,58351.0,0.081]
[1725270609268,0.359884,58352.0,58342.0,0.11998]
[1725270609269,0.239938,58349.0,58345.0,0.0655]
[1725270609502,0.11997,58348.0,58345.0,0.0655]
[1725270609747,0.239911,58355.0,58345.0,0.147]
[1725270609979,0.0268957,58349.0,58345.0,0.147]
[1725270610223,0.239931,58350.0,58345.0,0.147]
[1725270610450,0.119965,58351.0,58345.0,0.147]
[1725270610683,0.17344321,58359.0,58345.0,0.266975]
[1725270610684,0.119967,58350.0,58345.0,0.266975]
[1725270610907,0.239926,58352.0,58345.0,0.147]
[1725270611150,0.119969,58349.0,58345.0,0.147]
[1725270611426,0.239916,58354.0,58345.0,0.386948]
[1725270611658,0.119965,58351.0,58346.0,0.119972]
[1725270611905,0.119968,58349.0,58345.0,0.147]
[1725270612607,0.119973,58346.0,58345.0,0.147]
[1725270612873,0.35992,58346.0,58345.0,0.147]
[1725270613086,0.11995,58358.0,58346.0,0.0793]
[1725270613336,0.120755,58363.0,58356.0,0.0651]
[1725270613567,0.120755,58363.0,58358.0,0.119949]
[1725270613568,0.000816,58363.0,58358.0,0.119949]
[1725270613798,0.00816,58362.0,58356.0,0.0651]
[1725270614049,0.00816,58362.0,58356.0,0.185052]
[1725270614302,0.00816,58362.0,58351.0,0.061]
[1725270614303,0.022,58361.0,58351.0,0.061]
[1725270614524,0.022,58361.0,58345.0,0.011]
[1725270614525,0.13858171,58357.0,58347.0,0.061]
[1725270614744,0.14674171,58362.0,58348.0,0.08102767]
[1725270614979,0.11995,58358.0,58351.0,0.119962]
[1725270615251,0.00816,58362.0,58353.0,0.119957]
[1725270615252,0.119948,58359.0,58353.0,0.119957]
[1725270615483,0.119948,58359.0,58354.0,0.0828]
[1725270615727,0.005,58353.0,58344.0,0.50540786]
[1725270615985,0.005,58351.0,58345.0,0.0034279]
[1725270616231,0.005,58368.0,58345.0,0.0034279]
[1725270616475,0.000815,58378.0,58346.0,0.00342672]
[1725270616710,0.000815,58378.0,58353.0,0.03645]
[1725270616941,0.000815,58378.0,58353.0,0.002]
[1725270617177,0.0073356,58385.0,58347.0,0.45042787]
[1725270617178,0.02688026,58386.0,58368.0,0.005]
[1725270617417,0.02688026,58386.0,58374.0,0.119915]
[1725270617640,0.01,58390.0,58375.0,0.1]
[1725270617920,0.23976,58392.0,58375.0,0.1]
[1725270617921,0.17326535,58386.0,58375.0,0.1]
[1725270618148,0.01,58384.0,58371.0,0.1]
[1725270618407,0.01,58386.0,58372.0,0.23984]
[1725270618649,0.01,58374.0,58359.0,0.1425]
[1725270618881,0.17326535,58371.0,58365.0,0.50540786]
[1725270619148,0.01,58369.0,58359.0,0.1425]
[1725270619610,0.129927,58369.0,58359.0,0.1425]
[1725270619829,0.17326535,58376.0,58359.0,0.1425]
[1725270619830,0.01,58367.0,58359.0,0.1425]
[1725270620289,0.239867,58366.0,58359.0,0.1425]
[1725270620520,0.01,58367.0,58359.0,0.1425]
[1725270620739,0.129931,58367.0,58359.0,0.1425]
[1725270621024,0.02688707,58383.0,58361.0,0.0827]
[1725270621269,0.02688707,58383.0,58373.0,0.119917]
[1725270621504,0.02688707,58383.0,58371.0,0.1475]
[1725270621505,0.119901,58382.0,58371.0,0.1475]
[1725270621759,0.14677687,58385.0,58372.0,0.119919]
[1725270621979,0.119902,58381.0,58371.0,0.1465]
[1725270622202,0.1199,58382.0,58371.0,0.1465]
[1725270622465,0.119903,58381.0,58371.0,0.1465]
[1725270622699,0.119904,58380.0,58373.0,0.002]
[1725270622883,0.119904,58380.0,58371.0,0.266422]
[1725270623147,0.02688287,58385.0,58371.0,0.386344]
[1725270623393,0.02688287,58385.0,58373.0,0.239835]
[1725270623625,0.119892,58386.0,58373.0,0.239835]
[1725270623867,0.239897,58388.0,58373.0,0.239835]
[1725270623868,0.120008,58388.0,58379.0,0.119905]
[1725270624135,0.001,58380.0,58379.0,0.119905]
[1725270624355,0.001,58380.0,58379.0,0.599529]
[1725270624570,0.001,58380.0,58379.0,0.764829]
[1725270625028,0.001,58380.0,58379.0,0.847029]
[1725270625277,0.00012,58388.0,58379.0,0.405112]
[1725270625542,0.00012,58388.0,58384.0,0.239791]
[1725270625771,0.00012,58388.0,58384.0,0.00012]
[1725270626012,0.00012,58388.0,58384.0,0.120014]
[1725270626492,0.00012,58388.0,58386.0,0.11989]
[1725270626730,0.00012,58388.0,58386.0,0.00012]
[1725270627210,0.00012,58388.0,58387.0,0.119889]
[1725270627211,0.00112,58388.0,58387.0,0.119889]
[1725270627429,0.00856,58399.0,58387.0,0.120009]
[1725270627653,0.00856,58399.0,58387.0,0.00012]
[1725270627654,0.248291,58399.0,58387.0,0.00012]
[1725270627873,0.119872,58396.0,58387.0,0.00012]
[1725270628103,0.00856,58399.0,58388.0,0.119887]
[1725270628342,0.00856,58399.0,58389.0,0.1233098]
[1725270628556,0.128425,58399.0,58389.0,0.00012]
[1725270628767,0.00856,58399.0,58389.0,0.1234298]
[1725270629222,0.00856,58399.0,58390.0,0.0034248]
[1725270629459,0.00816,58403.0,58390.0,0.0034248]
[1725270629460,1e-08,58403.0,58398.0,0.119867]
[1725270629683,1e-08,58403.0,58399.0,0.0810243]
[1725270629944,1e-08,58403.0,58401.0,0.119859]
[1725270630204,1e-08,58403.0,58402.0,0.505399]
[1725270630442,1e-08,58403.0,58402.0,0.505519]
[1725270630694,1e-08,58403.0,58402.0,0.14252]
[1725270630923,0.00816,58440.0,58415.0,3.6826]
[1725270631237,0.00816,58440.0,58438.0,0.202285]
[1725270631533,0.119749,58456.0,58438.0,0.77966234]
[1725270631770,0.00815,58447.0,58438.0,0.60639699]
[1725270632010,0.00815,58447.0,58438.0,0.363405]
[1725270632240,0.00815,58447.0,58438.0,0.80920973]
[1725270632471,0.00815,58447.0,58438.0,0.263405]
[1725270632738,0.00815,58447.0,58438.0,0.09062]
[1725270633002,0.00815,58447.0,58438.0,0.08262]
[1725270633235,0.00815,58447.0,58438.0,0.09662]
[1725270633535,0.0614,58445.0,58438.0,0.01412]
[1725270633741,0.0396,58440.0,58438.0,0.00012]
[1725270634000,0.119775,58443.0,58438.0,0.00012]
[1725270634231,0.0614,58445.0,58438.0,0.00012]
[1725270634497,0.03541643,58439.0,58438.0,0.00012]
[1725270634748,0.39476543,58439.0,58438.0,0.00012]
[1725270634990,0.39476543,58439.0,58438.0,0.00912]
[1725270635219,0.15519943,58439.0,58438.0,0.00912]
[1725270635433,0.03541643,58439.0,58438.0,0.00012]
[1725270635648,0.03541643,58439.0,58438.0,0.00512]
[1725270636116,0.03541643,58439.0,58438.0,0.00012]
[1725270636360,0.01832811,58439.0,58438.0,0.00112]
[1725270636612,0.1,58444.0,58438.0,0.00112]
[1725270636865,0.1,58446.0,58438.0,0.00012]
[1725270637330,0.219769,58446.0,58438.0,0.00012]
[1725270637575,0.1,58446.0,58438.0,0.00312]
[1725270637798,0.17326535,58445.0,58438.0,0.00312]
[1725270638033,0.1,58446.0,58439.0,0.0807]
[1725270638283,0.1,58446.0,58445.0,0.359311]
[1725270638529,0.1,58446.0,58445.0,0.00012]
[1725270639008,0.219768,58446.0,58445.0,0.00012]
[1725270639246,0.220768,58446.0,58445.0,0.00012]
[1725270639501,0.1,58446.0,58445.0,0.00012]
[1725270639729,0.1268543,58446.0,58445.0,0.00012]
[1725270639969,0.1268543,58446.0,58445.0,0.01012]
[1725270640212,0.1268543,58446.0,58445.0,0.00012]
[1725270640468,0.1288543,58446.0,58445.0,0.00012]
[1725270640994,0.1,58446.0,58445.0,0.446331]
[1725270641272,0.1,58446.0,58445.0,0.749572]
[1725270641497,0.1,58446.0,58445.0,0.989113]
[1725270641740,0.0484375,58446.0,58445.0,1.091113]
[1725270641997,0.0004,58459.0,58458.0,0.183444]
[1725270642267,0.0004,58459.0,58458.0,0.08292]
[1725270642519,0.0004,58459.0,58458.0,0.119864]
[1725270642769,0.0004,58459.0,58458.0,0.359352]
[1725270643021,0.0004,58459.0,58458.0,0.84174869]
[1725270643229,0.0004,58459.0,58458.0,0.359352]
[1725270643460,0.0004,58459.0,58458.0,0.00012]
[1725270643700,0.120142,58459.0,58458.0,0.01412]
[1725270643943,0.359626,58459.0,58458.0,0.01412]
[1725270644180,0.0004,58459.0,58458.0,0.01412]
[1725270644418,0.02724588,58459.0,58458.0,0.01412]
[1725270644661,0.38647188,58459.0,58458.0,0.01412]
[1725270644904,0.02724588,58459.0,58458.0,0.01412]
[1725270645407,0.02724588,58459.0,58458.0,0.00012]
[1725270645633,0.62595588,58459.0,58458.0,0.00912]
[1725270645924,0.62595588,58459.0,58432.0,0.50540786]
[1725270645925,0.0546,58442.0,58432.0,0.50540786]
[1725270646157,0.076,58442.0,58432.0,0.50540786]
[1725270646373,0.0214,58442.0,58432.0,0.50540786]
[1725270646641,0.0214,58442.0,58430.0,0.0842]
[1725270646642,0.141178,58442.0,58430.0,0.204]
[1725270646867,0.026855,58440.0,58430.0,0.0842]
[1725270647125,0.119785,58438.0,58430.0,0.0842]
[1725270647353,0.026855,58440.0,58430.0,0.0842]
[1725270647613,0.026855,58440.0,58425.0,0.0877]